Cogmind - Beta 10.2 @@@ ROGUE MODE // 2022.01.12 @ 22:25:56 Player: Okkudo Result: Destroyed by S-10 Pest with Light Assault Rifle Performance ------------- Evolutions (0) 0 Regions Visited (1) 200 Robots Destroyed (8) 40 Value Destroyed (161) 161 Prototype IDs (0) 0 Alien Tech Used (0) 0 Bonus (0) 0 TOTAL SCORE: 401 Bonus ------- None Cogmind --------- Core Integrity 0/250 Matter 300/300 Energy 100/100 System Corruption 0% Temperature Cool (0) Movement Core (150) Ox2 Location -10/Materials Parts ------- > --- POWER (1) -------- (None) > --- PROPULSION (2) --- (None) > --- UTILITY (2) ------ Small Storage Unit Small Storage Unit > --- WEAPON (2) ------- (None) > --- INVENTORY (8) ---- Light Ion Engine Peak State ------------ > --- POWER ------------ Light Nuclear Core > --- PROPULSION ------- Light Treads Light Treads > --- UTILITY ---------- Small Storage Unit Small Storage Unit > --- WEAPON ----------- EM Pulse Gun Particle Gun > --- INVENTORY -------- Light Ion Engine [Rating: 10] Favorites ----------- Power Light Ion Engine Engine Light Ion Engine Power Core Light Nuclear Core Propulsion Light Treads Treads Light Treads Utility Small Storage Unit Storage Small Storage Unit Weapon EM Pulse Gun Energy Gun EM Pulse Gun Build | -11 -10 ------- Run | Scr Mat Slots Evolved . | . . Power . | . . Propulsion . | . . Utility . | . . Weapon . | . . Parts Attached 9 | 7 2 Power 2 | 1 1 Engine 1 | 1 . Core 1 | . 1 Reactor . | . . Propulsion 2 | 2 . Treads 2 | 2 . Leg . | . . Wheel . | . . Hover . | . . Flight . | . . Utility 2 | 2 . Device . | . . Storage 2 | 2 . Processor . | . . Hackware . | . . Protection . | . . Artifact . | . . Weapon 3 | 2 1 Energy Gun 3 | 2 1 Energy Cannon . | . . Ballistic Gun . | . . Ballistic Cannon . | . . Launcher . | . . Special Weapon . | . . Impact Weapon . | . . Slashing Weapon . | . . Piercing Weapon . | . . Special Melee Weapon . | . . Unidentified Prototypes . | . . Parts Lost 7 | . 7 Power 2 | . 2 Propulsion 2 | . 2 Utility . | . . Weapon 3 | . 3 Highest Loss Streak 5 | . 5 Average Slot Usage (%) 77 | . 77 Engine 6 | . 6 Core 1 | . 1 Treads 24 | . 24 Storage 28 | . 28 Energy Gun 16 | . 16 Naked Turns . | . . Heaviest Build 15 | 14 15 Greatest Support 40 | 40 40 Greatest Overweight (x) . | . . Average Overweight (x) . | . . Largest Inventory Capacity 8 | 8 8 Average Capacity 7 | 6 8 Most Carried 3 | 3 2 Average Carried 1 | . 1 Final Capacity 8 | 8 8 Final Carried 1 | 1 1 Class Distribution -------------------- 100% | Mutant Dominant Class ---------------- Mutant | -10/Materials Resources | -11 -10 ----------- Run | Scr Mat Matter Collected 270 | 270 . Remotely . | . . Salvage Created 333 | 100 233 Parts 19 | 1 18 Haulers Intercepted . | . . Recyclers Shooed 2 | . 2 Parts Field Recycled . | . . Retrieved Matter . | . . Parts Self-Destructed . | . . Prevented . | . . Kills | -11 -10 ------- Run | Scr Mat Combat Hostiles Destroyed 7 | . 7 Guns 7 | . 7 Classes Destroyed 3 | 1 2 Recycler 1 | 1 . Swarmer 4 | . 4 Grunt 3 | . 3 Best Kill Streak 4 | 1 4 Combat Bots Only 4 | . 4 Max Kills in Single Turn 1 | 1 1 Gunslinging . | . . Exploded . | . . Melee . | . . Uniques/NPCs Destroyed . | . . Combat | -11 -10 -------- Run | Scr Mat Damage Taken 869 | . 869 Core 252 | . 252 Absorbed by Shields . | . . Core Remaining (%) 100 | 100 . Volleys Fired 37 | 7 30 Largest 2 | 2 2 Hottest 80 | 80 80 Shots Fired 47 | 11 36 Gun 47 | 11 36 Cannon . | . . Launcher . | . . Special . | . . Kinetic . | . . Thermal 13 | 4 9 Explosive . | . . Electromagnetic 34 | 7 27 Robot Hit Streak 11 | 4 11 Robot Miss Streak 4 | 4 2 Penetration Max . | . . Secondary Targets . | . . Shots Hit Robots 33 | 5 28 Core Hits 12 | 2 10 Critical Hits . | . . Critical Kills . | . . Critical Parts Destroyed . | . . Melee Attacks . | . . Impact . | . . Slashing . | . . Piercing . | . . Sneak Attacks . | . . Combat Hostiles . | . . Follow-up Attacks . | . . Damage Inflicted 481 | 110 371 Guns 446 | 75 371 Cannons . | . . Explosions 35 | 35 . Melee . | . . Ramming . | . . Kinetic . | . . Thermal 149 | 45 104 Explosive . | . . Electromagnetic 332 | 65 267 Impact . | . . Slashing . | . . Piercing . | . . Highest Corruption . | . . Average Corruption . | . . Corruption Purged . | . . Overload Shots . | . . Overflow Damage 4 | 4 . Projectiles . | . . Explosions 4 | 4 . Melee . | . . Knockbacks . | . . Impact . | . . Kinetic . | . . Secondary . | . . Self-Inflicted Damage . | . . Shots . | . . Rammed . | . . Targets Rammed . | . . Kicked . | . . Crushed . | . . Highest Temperature 90 | 6 90 Average Temperature 41 | 3 48 Received Heat Transfer 123 | . 123 Siege Activations . | . . Robots Corrupted . | . . Combat Hostiles . | . . Parts Fried 1 | 1 . Impact Corruptions . | . . Robots Melted . | . . Combat Hostiles . | . . Parts Melted . | . . Heat Transferred 311 | 75 236 Parts Sabotaged . | . . Parts Stolen . | . . Parts Stripped . | . . Power Chain Reactions 1 | 1 . Missiles Intercepted . | . . Alert | -11 -10 ------- Run | Scr Mat Peak Influence 148 | 5 148 Initial 3 | . 3 Average 42 | 3 62 Maximum Alert Level . | . . Low Security (%) 100 | 100 100 Level 1 . | . . Level 2 . | . . Level 3 . | . . Level 4 . | . . Level 5 . | . . High Security . | . . Max Security . | . . Squads Dispatched . | . . Investigation . | . . Extermination . | . . Reinforcement . | . . Assault . | . . Garrison . | . . Intercept . | . . Construction Impeded . | . . Haulers Reinforced . | . . Stealth | -11 -10 --------- Run | Scr Mat Distress Signals 3 | . 3 Communications Jammed . | . . Distress Signals . | . . Times Spotted 12 | . 12 Peak Tracking Total 7 | . 7 Tactical Retreats . | . . Traps | -11 -10 ------- Run | Scr Mat Traps Triggered . | . . Indirectly . | . . Trap Hack Attempts . | . . Triggered . | . . Disarmed . | . . Reprogrammed . | . . Reused . | . . Traps Extracted . | . . Installed . | . . Triggered . | . . Machines | -11 -10 ---------- Run | Scr Mat Machines Disabled . | . . Max in Single Turn . | . . Machines Sabotaged . | . . Garrisons Compromised . | . . Overloaded Fab Kills . | . . Fab Network Shutdowns . | . . Hacking | -11 -10 --------- Run | Scr Mat Machines Accessed . | . . Terminals . | . . Fabricators . | . . Repair Stations . | . . Recycling Units . | . . Scanalyzers . | . . Garrison Access . | . . Total Hacks . | . . Successful . | . . Failed . | . . Catastrophic . | . . Database Lockouts . | . . Manual . | . . Terminals . | . . Fabricators . | . . Repair Stations . | . . Recycling Units . | . . Scanalyzers . | . . Garrison Access . | . . Terminal Hacks . | . . Fabricator Hacks . | . . Repair Station Hacks . | . . Recycling Unit Hacks . | . . Scanalyzer . | . . Garrison Access Hacks . | . . Unauthorized Hacks . | . . Terminals . | . . Fabricators . | . . Repair Stations . | . . Recycling Units . | . . Scanalyzers . | . . Garrison Access . | . . Data Cores Recovered . | . . Used . | . . Hacking Detections . | . . Full Trace Events . | . . Feedback Events . | . . Feedback Blocked . | . . Robot Schematics Acquired . | . . Robots Built . | . . Matter . | . . Time . | . . Total Robot Build Rating . | . . Part Schematics Acquired . | . . Parts Built . | . . Matter . | . . Time . | . . Total Part Build Rating . | . . Parts Repaired . | . . Time . | . . Parts Recycled . | . . Recycled Matter . | . . Retrieved Matter . | . . Retrieved Components . | . . Parts Scanalyzed . | . . Part Schematics Acquired . | . . Parts Damaged . | . . Bothacking | -11 -10 ------------ Run | Scr Mat Used RIF Installer . | . . Robots Hacked . | . . Non-combat . | . . Combat . | . . Robot Hacks Applied . | . . Relay Couplers Released . | . . Robots Rewired . | . . Allies Hacked . | . . Hacks Repelled . | . . Allies | -11 -10 -------- Run | Scr Mat Total Allies . | . . Largest Group . | . . Highest-Rated Group . | . . Highest-Rated Ally . | . . Total Orders . | . . Ally Attacks . | . . Total Damage . | . . Kills . | . . Allies Corrupted . | . . Allies Melted . | . . Intel | -11 -10 ------- Run | Scr Mat Robot Analysis Total . | . . Derelict Logs Recovered . | . . Drone Launches . | . . Drone Recoveries . | . . Exploration | -11 -10 ------------- Run | Scr Mat Turns Passed 319 | 108 211 Spaces Moved 103 | 50 53 Core 9 | 9 . Treads 94 | 41 53 Legs . | . . Wheels . | . . Hover . | . . Flight . | . . Fastest Speed 50 | 50 160 Average Speed 150 | 140 160 Slowest Speed 160 | 160 160 Overloaded Moves . | . . Propulsion Burnouts . | . . Robots Hopped . | . . Cave-ins Triggered . | . . Exploration Rate (%) 10 | 4 17 Regions Visited 1 Branch Regions . Pre-discovered Areas . | . . Known Exits Taken . | . . Unknown Exits Taken 1 | 1 . Scrap Searched . | . . Spaces Dug . | . . Terrain Destroyed 5 | 5 . Melee . | . . Projectile . | . . AOE 5 | 5 . Terrain Rammed . | . . Walls Destroyed . | . . Machines Disabled . | . . Actions | -11 -10 --------- Run | Scr Mat Total 221 | 77 144 Wait 63 | 6 57 Move 102 | 49 53 Hop . | . . Pick Up 10 | 8 2 Fast Attach . | . . Attach 9 | 7 2 Detach . | . . Swap . | . . Drop . | . . Fire 37 | 7 30 Melee . | . . Ram . | . . Kick . | . . Crush . | . . Escape Stasis . | . . Rewire . | . . Trap . | . . Miscellaneous . | . . Route ------- -11/Scrapyard -10/Materials History --------- Turn | Location | Event 5 | -11/Scrapyard | Discovered new exit (range 15) 109 | -11/Scrapyard | Entered Materials 279 | -10/Materials | Core integrity fell below 50% 307 | -10/Materials | Core integrity fell below 20% 317 | -10/Materials | Build established: Mutant 320 | -10/Materials | Destroyed by S-10 Pest with Light Assault Rifle Last Messages --------------- 00259_ Lgt. Nuclear Core destroyed. 00261_ K-01 Serf collects debris. 00265_ S-10 Pest destroyed. 00268_ K-01 Serf collects debris. 00274_ R-06 Scavenger collects Flight Unit. 00275_ K-01 Serf collects debris. 00278_ R-06 Scavenger collects Lgt. Ion Engine. 00279_ K-01 Serf collects debris. 00281_ R-06 Scavenger collects Flight Unit. 00283_ Critical hit. 00283_ Lgt. Treads destroyed. 00284_ S-10 Pest misfires. 00286_ K-01 Serf collects debris. 00286_ Particle Gun destroyed. 00286_ R-06 Scavenger collects Flight Unit. 00287_ K-01 Serf cleans the Fusion Modulator. 00289_ K-01 Serf collects debris. 00301_ Lgt. Treads destroyed. 00302_ K-01 Serf collects debris. 00317_ R-06 Scavenger collects Flight Unit. Map ----- +----------------------------------------------------+ | | | ??????????????????????????????????????????????? | | ??????????????????????????????????????????????? | | ??????????????????????????????????????????????? | | ??????????????????????????????????????????????? | | ??????????????????????????????????????????????? | | ??????????????????????????????????????????????? | | ??????????????????????????????????????????????? | | ??????????????????????????????????????????????? | | ??????????????????????? ? ???????????????????? | | ???????????????????? T ???????????????????? | | ?????????????????? ??###########??????? | | ???????????????? #?# #??????? | | ??????????????? ?+ #####??? | | ??????????????? #?# # #??? | | ??????????????? #?# # #??? | | ???????????????? k #?# # #??? | | ?????????????????? #?# !+% #??? | | ???????????????????# #?# =#= #??? | | ???????????????????# #?# # #??? | | ???????????????????# #?########### ##?? | | ???????????????????# %=############ #?? | | ???????????????????# ras %! #?? | | ???????????????????# % s #?? | | ???????????????????# !] w % #?? | | ???????????????????# !!@ ########### #?? | | ???????????????????# #?????????#######?? | | ???????????????????# #?????????????????? | | ???????????????????# +?????????????????? | | ?????????????????? ! #?????????????????? | | ???????????????? #?????????????????? | | ?????????????? a #?????????????????? | | ????????????? """ """ #?????????????????? | | ????????????? """ """ #?????????????????? | | ?????????????# ???"" """ #?????????????????? | | ?????????????????? ?? #?????????????????? | | ?????????????????? ??? ?????????????????? | | ??????????????????""????" ?????????????????? | | ????????????????????????" ?????????????????? | | ????????????????????????? ?????????????????? | | ????????????????????????? ??????????????????? | | ??????????????????????????????????????????????? | | ??????????????????????????????????????????????? | | ??????????????????????????????????????????????? | | ??????????????????????????????????????????????? | | ??????????????????????????????????????????????? | | ??????????????????????????????????????????????? | | ??????????????????????????????????????????????? | | ??????????????????????????????????????????????? | | ??????????????????????????????????????????????? | +----------------------------------------------------+ Best States ------------- Heat Dissipation 25 Energy Generation 14 Energy Capacity 160 Matter Stores 300 Matter Capacity 300 Sight Range 16 Terrain Scan Density 10 Evasion (%) 40 Recoil Reduction 2 Item Schematics ----------------- None Robot Schematics ------------------ None Fabricated ------------ Nothing Alien Tech Used ----------------- None Achievements -------------- None Challenges ------------ None Game ------ Seed PotentialAlertFrame Manual? 0 Play Time 00:06:51 Cumulative 26.1 hours Start 2022.01.12 @ 22:21:11 End 2022.01.12 @ 22:25:56 Sessions 1 Manual Loads 0 Difficulty Rogue Special Mode None Game No. 56 Rogue 56 Adventurer 0 Explorer 0 Win Type - Total 0 Types 0/0/0/0/0/0/0/0/0 Lore% 21 Gallery% 21 Achievement% 17 Wizard Run 0 Options --------- ASCII 0 Keyboard 0 Movement Mouse Keybinds 0 Fullscreen 1 Font 12/Terminus Map View 83x54 Tactical HUD 1 Map Filters NONE Filters NONE Steam 1 RUN: 32b8b818-1b97-41b0-b9f2-d4d71d7c4e33